lending/lending_fUSD_20251016
["ID","MTS","AMOUNT","RATE_DAILY","PERIOD"]
[391542240,1760641846121,-151.0,0.00024067,7]
[391542242,1760641846130,-160.0,0.00024067,2]
[391542244,1760641846139,-151.0,0.00024067,2]
[391542246,1760641846148,-160.0,0.00024067,2]
[391542248,1760641846157,-151.0,0.00024067,2]
[391542250,1760641846166,-821.0,0.00024067,2]
[391542252,1760641846175,-151.0,0.00024067,2]
[391542254,1760641846184,-168.35534626,0.00024067,2]
[391542256,1760641846193,-686.50445507,0.00024067,2]
[391542258,1760641846202,-151.0,0.00024067,2]
[391542260,1760641846211,-151.0,0.00024067,2]
[391542262,1760641846221,-821.0,0.00024067,2]
[391542264,1760641846230,-151.0,0.00024067,2]
[391542267,1760641846241,-151.0,0.00024067,2]
[391542269,1760641846253,-821.0,0.00024067,2]
[391542271,1760641846262,-151.0,0.00024067,2]
[391542273,1760641846271,-821.0,0.00024067,2]
[391542275,1760641846280,-151.0,0.00024067,2]
[391542276,1760641846289,-151.0,0.00024067,2]
[391542278,1760641846299,-151.0,0.00024067,2]
[391542280,1760641846308,-821.0,0.00024067,2]
[391542282,1760641846317,-151.0,0.00024067,2]
[391542284,1760641846326,-151.0,0.00024067,2]
[391542285,1760641846335,-151.0,0.00024067,2]
[391542287,1760641846345,-821.0,0.00024067,2]
[391542289,1760641846354,-151.0,0.00024067,2]
[391542291,1760641846363,-151.0,0.00024067,2]
[391542293,1760641846378,-151.0,0.00024067,2]
[391542296,1760641846388,-821.0,0.00024067,2]
[391542298,1760641846398,-151.0,0.00024067,2]
[391542300,1760641846408,-151.0,0.00024067,2]
[391542302,1760641846419,-151.0,0.00024067,2]
[391542303,1760641846428,-821.0,0.00024067,2]
[391542305,1760641846438,-199.22704693,0.00024067,2]
[391542307,1760641846448,-193.06066138,0.00024067,2]
[391542310,1760641846457,-151.0,0.00024067,2]
[391542311,1760641846468,-821.0,0.00024067,2]
[391542313,1760641846477,-151.0,0.00024067,2]
[391542315,1760641846486,-821.0,0.00024067,2]
[391542318,1760641846500,-151.0,0.00024067,2]
[391542319,1760641846509,-821.0,0.00024067,2]
[391542321,1760641846519,-821.0,0.00024067,2]
[391542323,1760641846529,-151.0,0.00024067,2]
[391542325,1760641846538,-151.0,0.00024067,2]
[391542327,1760641846548,-151.0,0.00024067,2]
[391542329,1760641846557,-151.0,0.00024067,2]
[391542331,1760641846567,-151.0,0.00024067,2]
[391542333,1760641846577,-151.0,0.00024067,2]
[391542335,1760641846586,-151.0,0.00024067,2]
[391542337,1760641846596,-151.0,0.00024067,2]
[391542339,1760641846605,-151.0,0.00024067,2]
[391542341,1760641846615,-151.0,0.00024067,2]
[391542343,1760641846625,-151.0,0.00024067,2]
[391542345,1760641846634,-151.0,0.00024067,2]
[391542347,1760641846644,-222.22848969,0.00024067,2]
[391542348,1760641846653,-151.0,0.00024067,2]
[391542349,1760641846664,-160.51,0.00024104,2]
[391542350,1760641846674,-3102.42165,0.00024122,2]
[391542351,1760641846684,-502.07,0.00024183,2]
[391542352,1760641846694,-1000.0,0.00024222,2]
[391542353,1760641846705,-475.57272817,0.000243,7]
[391542354,1760641846715,-160.86,0.00024363,2]
[391542355,1760641846725,-8644.29444669,0.00024389,2]
[391542356,1760641846735,-19542.0,0.00024458,2]
[391542357,1760641846750,-269.284998,0.00024472,2]
[391542358,1760641846760,-589.2,0.00024529,2]
[391542359,1760641847108,-5000.0,0.00024558,2]
[391542360,1760641847120,-151.0,0.00024558,7]
[391542361,1760641847130,-151.0,0.00024558,7]
[391542362,1760641847140,-151.0,0.00024558,7]
[391542363,1760641847149,-151.0,0.00024558,7]
[391542364,1760641847159,-260.533338,0.00024558,7]
[391542365,1760641847169,-151.0,0.00024558,7]
[391542366,1760641847178,-260.533338,0.00024558,7]
[391542367,1760641847188,-151.0,0.00024558,7]
[391542368,1760641847198,-260.533338,0.00024558,7]
[391542369,1760641847208,-260.533338,0.00024558,7]
[391542370,1760641847219,-151.0,0.00024558,7]
[391542371,1760641847230,-151.0,0.00024558,7]
[391542372,1760641847239,-151.0,0.00024558,7]
[391542373,1760641847254,-151.0,0.00024558,7]
[391542374,1760641847263,-164.209488,0.00024558,7]
[391542375,1760641847273,-151.0,0.00024558,7]
[391542376,1760641847283,-164.209488,0.00024558,7]
[391542377,1760641847293,-174.761564,0.00024558,7]
[391542378,1760641847302,-164.209488,0.00024558,7]
[391542379,1760641847313,-164.209488,0.00024558,7]
[391542380,1760641847323,-151.0,0.00024558,7]
[391542381,1760641847333,-151.0,0.00024558,7]
[391542382,1760641847342,-151.0,0.00024558,7]
[391542383,1760641847351,-151.0,0.00024558,7]
[391542384,1760641847361,-151.0,0.00024558,7]
[391542385,1760641847372,-151.0,0.00024558,7]
[391542386,1760641847384,-454.250138,0.00024558,7]
[391542387,1760641847393,-151.0,0.00024558,7]
[391542388,1760641847403,-454.250138,0.00024558,7]
[391542389,1760641847412,-454.250138,0.00024558,7]
[391542390,1760641847422,-454.250138,0.00024558,7]
[391542391,1760641847431,-151.0,0.00024558,7]
[391542392,1760641847441,-280.439262,0.00024558,7]
[391542393,1760641847452,-151.0,0.00024558,7]
[391542394,1760641847463,-151.0,0.00024558,7]
[391542395,1760641847473,-169.506027,0.00024558,7]
[391542396,1760641847482,-1697.803317,0.00024558,7]
[391542397,1760641847493,-151.0,0.00024558,7]
[391542398,1760641847502,-151.434563,0.00024558,7]
[391542399,1760641847512,-169.506027,0.00024558,7]
[391542400,1760641847521,-1697.803317,0.00024558,7]
[391542401,1760641847530,-151.0,0.00024558,7]
[391542402,1760641847538,-151.0,0.00024558,7]
[391542403,1760641847547,-169.506027,0.00024558,7]
[391542404,1760641847556,-1697.803317,0.00024558,7]
[391542405,1760641847566,-169.506027,0.00024558,7]
[391542406,1760641847575,-1697.803317,0.00024558,7]
[391542407,1760641847584,-151.0,0.00024558,7]
[391542408,1760641847593,-151.0,0.00024558,7]
[391542409,1760641847603,-1282.5875399,0.00024559,2]
[391542410,1760641847613,-1000.0,0.00024658,7]
[391542411,1760641847622,-1000.0,0.00024658,7]
[391542412,1760641847632,-1000.0,0.00024658,7]
[391542413,1760641847641,-1000.0,0.00024658,7]
[391542414,1760641847651,-1000.0,0.00024658,7]
[391542415,1760641847660,-676.31999258,0.00024658,7]
[391542423,1760642024488,-151.93829972,0.00019073,2]
[391542432,1760642412872,1880.0,0.00027397,120]
[391542441,1760642641795,151.23016311,0.00027397,120]
[391542442,1760642644118,151.23016311,0.00027397,120]
[391542443,1760642646944,151.23016311,0.00027397,120]
[391542444,1760642648694,151.23016311,0.00027397,120]
[391542445,1760642650377,151.23016311,0.00027397,120]
[391542446,1760642652213,151.23016311,0.00027397,120]
[391542447,1760642662173,151.23016307,0.00027397,120]
[391542456,1760642709000,4848.06170028,0.00015,2]
[391542457,1760642709027,5000.0,0.00015,2]
[391542563,1760642967521,-1143.38384372,0.000135,2]
[391542564,1760642967544,-300.0,0.000138,2]
[391542565,1760642967566,-300.0,0.000141,2]
[391542566,1760642967588,-1655.454,0.000147,2]
[391542567,1760642967617,-352.76403651,0.0001485,2]
[391542568,1760642967640,-300.0,0.0001485,2]
[391542569,1760642967663,-195.0,0.0001485,2]
[391542570,1760642967692,-2500.0,0.0001485,2]
[391542571,1760642967713,-302.57927306,0.0001485,2]
[391542572,1760642967737,-300.0,0.0001485,2]
[391542573,1760642967759,-7395.30568548,0.000149,2]
[391542574,1760642967781,-354.91230689,0.00014973,2]
[391542575,1760642967803,-500.0,0.00014973,2]
[391542576,1760642967824,-500.0,0.00014973,2]
[391542577,1760642967853,-172.6605055,0.00014999,2]
[391542578,1760642967875,-500.0,0.00014999,2]
[391542579,1760642967897,-295.01599745,0.00014999,2]
[391542580,1760642967919,-500.0,0.00014999,2]
[391542581,1760642967942,-243.15279835,0.00014999,2]
[391542582,1760642967964,-500.0,0.00014999,2]
[391542583,1760642967986,-595.71053915,0.00014999,2]
[391542584,1760642968009,-500.0,0.00014999,2]
[391542585,1760642968032,-500.0,0.00014999,2]
[391542586,1760642968059,-500.0,0.00014999,2]
[391542587,1760642968089,-500.0,0.00014999,2]
[391542588,1760642968116,-500.0,0.00014999,2]
[391542589,1760642968144,-169.8959245,0.00014999,2]
[391542590,1760642968169,-68424.16508939,0.00015,2]
[391542617,1760643031714,-166.47609715,0.000149,2]
[391542619,1760643031725,-145.52390285,0.000149,2]
[391542622,1760643031742,-68.76256181,0.000149,2]
[391542624,1760643031752,-250.0,0.00014936,2]
[391542626,1760643031762,-103.06287562,0.00014973,2]
[391542628,1760643031776,-227.0125348,0.00014973,2]
[391542630,1760643031786,-500.0,0.00014973,2]
[391542631,1760643031796,-1002.44033433,0.00014999,2]
[391542632,1760643031805,-999.85101634,0.00014999,2]
[391542633,1760643035566,-200.14898366,0.00014999,2]
[391542634,1760643035576,-300.0,0.00014999,2]
[391542635,1760643035586,-150.0,0.00014999,2]
[391542636,1760643035596,-156.03369651,0.00015,2]
[391542637,1760643035608,-28290.00000001,0.00015,2]
[391542638,1760643035624,-1051.26540395,0.00015,2]
[391542639,1760643035635,-309.39056056,0.00015,2]
[391542640,1760643035647,-344.77952441,0.00015,2]
[391542649,1760643035941,-21586.66085483,0.00015,2]
[391542650,1760643035953,-73729.25134528,0.00015,2]
[391542660,1760643037559,-1280.15,0.0001499,2]
[391542661,1760643037569,-1280.15,0.0001499,2]
[391542662,1760643037579,-367772.74553877,0.00015,2]
[391542663,1760643037614,-1139.7,0.00015,2]
[391542664,1760643037671,-598.75093813,0.00015,2]
[391542665,1760643037734,-615.98464688,0.00015,2]
[391542666,1760643037754,-542.583,0.00015,2]
[391542868,1760643039633,-421.85952,0.00015,2]
[391542907,1760643039954,-442.0,0.00015,2]
[391542915,1760643042711,-2480.7,0.00015,2]
[391542916,1760643042769,-546.93764206,0.00015,2]
[391542917,1760643042934,-316.36887594,0.00015,2]
[391542918,1760643042946,-1685.59224742,0.00015,2]
[391542919,1760643045682,-827.30677729,0.00015,2]
[391542920,1760643045739,-7408.83869978,0.00015,2]
[391542921,1760643045752,-570.22282652,0.00015,2]
[391542922,1760643045765,-1121.60511988,0.00015,2]
[391542923,1760643045779,-291.93750307,0.00015,2]
[391542924,1760643045903,-653.47039619,0.00015,2]
[391542925,1760643045918,-582.733,0.00015,2]
[391542941,1760643446584,2694.64,0.00013,2]
[391542942,1760643446612,267.00892506,0.00013,2]
[391542943,1760643446640,44.27107494,0.00013,2]
[391542945,1760643659729,181.63,7.638e-05,2]
[391542946,1760643659951,181.63,8.04e-05,2]
[391542947,1760643660195,33.58,8.442e-05,2]
[391542948,1760643660225,148.05,8.442e-05,2]
[391542949,1760643660415,181.63,8.844e-05,2]
[391542950,1760643660650,181.63,9.246e-05,2]
[391542951,1760643660853,181.63,9.648e-05,2]
[391542952,1760643661106,181.63,0.0001005,2]
[391542953,1760643661366,181.63,0.00010452,2]
[391542954,1760643661585,181.63,0.00010854,2]
[391542955,1760643661814,181.63,0.00011256,2]
[391542956,1760643662037,181.63,0.00011658,2]
[391542957,1760643662265,181.63,0.0001206,2]
[391542958,1760643662490,181.63,0.00012462,2]
[391542959,1760643662710,181.63,0.00012864,2]
[391543012,1760644041040,-181.63,0.00013266,2]
[391543013,1760644041069,-377.9529461,0.00013467,2]
[391543014,1760644041091,-181.63,0.00013668,2]
[391543015,1760644041111,-441.81,0.00013699,2]
[391543016,1760644041132,-155.58980658,0.00013905,2]
[391543017,1760644041153,-300.0,0.00014049,2]
[391543018,1760644041175,-181.63,0.0001407,2]
[391543019,1760644041196,-181.63,0.00014472,2]
[391543020,1760644041217,-1200.0,0.00014591,2]
[391543021,1760644041238,-300.0,0.00014591,2]
[391543022,1760644041260,-300.0,0.00014592,2]
[391543023,1760644041282,-300.0,0.00014592,2]
[391543024,1760644041306,-250.0,0.00014592,2]
[391543025,1760644041327,-300.0,0.00014592,2]
[391543026,1760644041348,-383.95182773,0.00014592,2]
[391543027,1760644041368,-250.0,0.00014592,2]
[391543028,1760644041390,-195.0,0.00014592,2]
[391543029,1760644041410,-2500.0,0.00014592,2]
[391543030,1760644041432,-19.17541959,0.00014725,2]
[391543032,1760644124931,-308.55852,0.00014652,2]
[391543033,1760644124957,-250.0,0.00014688,2]
[391543034,1760644124980,-899.70458041,0.00014725,2]
[391543035,1760644125004,-169.1337952,0.00014725,2]
[391543036,1760644125029,-300.0,0.000148,2]
[391543037,1760644125059,-181.63,0.00014874,2]
[391543038,1760644125083,-930.77552313,0.00014877,2]
[391543039,1760644125105,-300.0,0.00014899,2]
[391543040,1760644125128,-150.0,0.00014899,2]
[391543041,1760644125153,-8078.3486194,0.000149,2]
[391543042,1760644125176,-3431.84896186,0.000149,2]
[391543045,1760644126986,-6993.14119975,0.000149,2]
[391543046,1760644127015,-228.35662371,0.000149,2]
[391543047,1760644127036,-197.58241956,0.000149,2]
[391543048,1760644127058,-500.0,0.00014973,2]
[391543049,1760644127080,-174.18,0.00014991,2]
[391543050,1760644127102,-151.0,0.00014991,2]
[391543051,1760644127123,-151.0,0.00014991,2]
[391543052,1760644127146,-151.0,0.00014991,2]
[391543053,1760644127167,-151.0,0.00014991,2]
[391543054,1760644127187,-151.0,0.00014991,2]
[391543055,1760644127209,-200.0,0.00014991,2]
[391543056,1760644127229,-151.0,0.00014991,2]
[391543057,1760644127251,-151.0,0.00014991,2]
[391543058,1760644127272,-151.0,0.00014991,2]
[391543059,1760644127291,-151.0,0.00014991,2]
[391543060,1760644127312,-151.0,0.00014991,2]
[391543061,1760644127332,-151.0,0.00014991,2]
[391543062,1760644127353,-151.0,0.00014991,2]
[391543063,1760644127374,-151.0,0.00014991,2]
[391543064,1760644127399,-151.0,0.00014991,2]
[391543065,1760644127420,-151.0,0.00014991,2]
[391543066,1760644127440,-151.0,0.00014991,2]
[391543067,1760644127461,-151.0,0.00014991,2]
[391543068,1760644127480,-151.0,0.00014991,2]
[391543069,1760644127500,-151.0,0.00014991,2]
[391543070,1760644127521,-151.0,0.00014991,2]
[391543071,1760644127540,-200.0,0.00014991,2]
[391543072,1760644127560,-151.0,0.00014991,2]
[391543073,1760644127579,-151.0,0.00014991,2]
[391543074,1760644127599,-151.0,0.00014991,2]
[391543075,1760644127618,-151.0,0.00014991,2]
[391543076,1760644127640,-151.0,0.00014991,2]
[391543077,1760644127660,-2731.73975698,0.00014991,2]
[391543078,1760644128679,-322.48522592,0.00014991,2]
[391543079,1760644128699,-8020.53606386,0.00014999,2]
[391543080,1760644128721,-185.54399161,0.00014999,2]
[391543081,1760644128741,-1749.242,0.00014999,2]
[391543082,1760644128763,-4722.19271861,0.00015,2]
[391543083,1760644132947,-15000.0,0.00015,2]
[391543084,1760644144636,-757.0,0.00015,2]
[391543089,1760644231837,-160.118,0.00014999,2]
[391543090,1760644231847,-300.0,0.00014999,2]
[391543091,1760644231857,-1200.0,0.00014999,2]
[391543092,1760644231867,-300.0,0.00014999,2]
[391543093,1760644231876,-1964.52671149,0.00015,2]
[391543094,1760644231995,-1499.85623759,0.00015,2]
[391543095,1760644232007,-541.2646032,0.00015,2]
[391543096,1760644232019,-601.9999995,0.00015,2]
[391543097,1760644232049,-157037.01910461,0.00015,2]
[391543098,1760644232060,-17473.41016221,0.00015,2]
[391543099,1760644232077,-20792.32986868,0.00015,2]
[391543100,1760644232090,-4707.6,0.00015,2]
[391543203,1760644237887,-3383.64808418,0.00015,2]
[391543204,1760644237900,-299.77785653,0.00015,2]
[391543205,1760644237912,-2368.10514253,0.00015,2]
[391543206,1760644237943,-1200.0,0.00015,2]
[391543350,1760644239900,-1278.04122324,0.00015,2]
[391543352,1760644239913,-1623.4347756,0.00015,2]
[391543472,1760644241128,-1492.39873372,0.00015,2]
[391543475,1760644241139,-8611.9498098,0.00015,2]
[391543477,1760644241149,-302876.0308004,0.00015,2]
[391543479,1760644241159,-173.5253299,0.00015,2]
[391543481,1760644241168,-68861.0394123,0.00015,2]
[391543483,1760644241178,-160.0,0.00015,2]
[391543485,1760644241188,-1034.14055,0.00015,2]
[391543487,1760644241198,-151.0,0.00015,2]
[391543489,1760644241207,-151.0,0.00015,2]
[391543491,1760644241217,-151.0,0.00015,2]
[391543493,1760644241230,-151.0,0.00015,2]
[391543495,1760644241239,-151.0,0.00015,2]
[391543497,1760644241248,-151.0,0.00015,2]
[391543499,1760644241259,-172.221913,0.00015,2]
[391543500,1760644241268,-151.0,0.00015,2]
[391543503,1760644241278,-151.0,0.00015,2]
[391543505,1760644241288,-151.0,0.00015,2]
[391543506,1760644241297,-151.0,0.00015,2]
[391543508,1760644241306,-152.672908,0.00015,2]
[391543510,1760644241316,-151.0,0.00015,2]
[391543512,1760644241325,-151.0,0.00015,2]
[391543514,1760644241335,-151.0,0.00015,2]
[391543516,1760644241344,-151.0,0.00015,2]
[391543518,1760644241354,-208.426671,0.00015,2]
[391543520,1760644241363,-208.426671,0.00015,2]
[391543523,1760644241373,-208.426671,0.00015,2]
[391543525,1760644241383,-208.426671,0.00015,2]
[391543527,1760644241393,-151.0,0.00015,2]
[391543529,1760644241403,-1358.242654,0.00015,2]
[391543531,1760644241412,-152.419978,0.00015,2]
[391543533,1760644241421,-151.0,0.00015,2]
[391543535,1760644241438,-1358.242654,0.00015,2]
[391543537,1760644241454,-151.0,0.00015,2]
[391543539,1760644241464,-151.0,0.00015,2]
[391543541,1760644241475,-151.0,0.00015,2]
[391543543,1760644241485,-1358.242654,0.00015,2]
[391543545,1760644241494,-151.0,0.00015,2]
[391543547,1760644241504,-1358.242654,0.00015,2]
[391543549,1760644241514,-316.655344,0.00015,2]
[391543552,1760644241523,-151.0,0.00015,2]
[391543554,1760644241533,-151.0,0.00015,2]
[391543556,1760644241543,-316.655344,0.00015,2]
[391543558,1760644241552,-151.0,0.00015,2]
[391543560,1760644241561,-151.0,0.00015,2]
[391543562,1760644241571,-316.655344,0.00015,2]
[391543564,1760644241580,-151.0,0.00015,2]
[391543566,1760644241591,-151.0,0.00015,2]
[391543568,1760644241600,-316.655344,0.00015,2]
[391543570,1760644241609,-151.0,0.00015,2]
[391543572,1760644241619,-363.40011,0.00015,2]
[391543574,1760644241629,-363.40011,0.00015,2]
[391543576,1760644241638,-363.40011,0.00015,2]
[391543578,1760644241647,-294.655102,0.00015,2]
[391543580,1760644241657,-363.40011,0.00015,2]
[391543582,1760644241666,-294.655102,0.00015,2]
[391543584,1760644241676,-294.655102,0.00015,2]
[391543586,1760644241685,-294.655102,0.00015,2]
[391543588,1760644241695,-200.0,0.00015,2]
[391543590,1760644241704,-151.0,0.00015,2]
[391543592,1760644241714,-151.0,0.00015,2]
[391543594,1760644241725,-151.0,0.00015,2]
[391543597,1760644241735,-151.0,0.00015,2]
[391543599,1760644241744,-151.0,0.00015,2]
[391543601,1760644241754,-151.0,0.00015,2]
[391543603,1760644241763,-151.0,0.00015,2]
[391543605,1760644241773,-859.0,0.00015126,2]
[391543607,1760644241782,-174.18,0.00015265,2]
[391543609,1760644241792,-666.0,0.00015267,3]
[391543611,1760644241801,-181.63,0.00015276,2]
[391543613,1760644241811,-800.0,0.00015298,2]
[391543615,1760644241820,-174.2,0.00015539,2]
[391543617,1760644241836,-500.0,0.00015629,2]
[391543619,1760644241846,-196.87269476,0.0001565,2]
[391543621,1760644241855,-500.0,0.00015677,2]
[391543623,1760644241865,-500.0,0.00015677,2]
[391543625,1760644241875,-151.25313363,0.00015933,2]
[391543627,1760644241884,-255.0,0.00016031,2]
[391543629,1760644241894,-250.0,0.00016117,2]
[391543632,1760644241904,-316.0,0.00016164,2]
[391543634,1760644241913,-300.0,0.00016198,2]
[391543636,1760644241923,-5000.00500285,0.000162,5]
[391543638,1760644241933,-151.0,0.000162,2]
[391543640,1760644241943,-151.0,0.000162,2]
[391543642,1760644241955,-1000.0,0.00016225,2]
[391543644,1760644241965,-962.66,0.00016374,2]
[391543646,1760644241978,-500.0,0.00016388,2]
[391543648,1760644241988,-254.28,0.00016388,2]
[391543650,1760644241998,-8078.34861934,0.00016401,2]
[391543652,1760644242008,-151.0,0.00016401,2]
[391543654,1760644242017,-151.0,0.00016401,2]
[391543656,1760644242027,-151.0,0.00016401,2]
[391543658,1760644242040,-152.005314,0.00016401,2]
[391543660,1760644242051,-151.0,0.00016401,2]
[391543662,1760644242060,-151.0,0.00016401,2]
[391543665,1760644242070,-230.798784,0.00016401,2]
[391543667,1760644242082,-151.0,0.00016401,2]
[391543669,1760644242091,-151.331448,0.00016401,2]
[391543671,1760644242100,-151.0,0.00016401,2]
[391543673,1760644242113,-151.0,0.00016401,2]
[391543675,1760644242122,-151.0,0.00016401,2]
[391543677,1760644242132,-151.0,0.00016401,2]
[391543679,1760644242142,-151.0,0.00016401,2]
[391543681,1760644242152,-151.0,0.00016401,2]
[391543683,1760644242161,-151.0,0.00016401,2]
[391543685,1760644242171,-151.0,0.00016401,2]
[391543687,1760644242181,-151.0,0.00016401,2]
[391543689,1760644242190,-151.0,0.00016401,2]
[391543692,1760644242205,-151.0,0.00016401,2]
[391543694,1760644242215,-151.0,0.00016401,2]
[391543696,1760644242225,-151.0,0.00016401,2]
[391543698,1760644242235,-151.0,0.00016401,2]
[391543700,1760644242245,-190.172544,0.00016401,2]
[391543702,1760644242255,-236.251494,0.00016401,2]
[391543704,1760644242264,-151.0,0.00016401,2]
[391543706,1760644242275,-208.426671,0.00016401,2]
[391543708,1760644242284,-208.426671,0.00016401,2]
[391543710,1760644242294,-208.426671,0.00016401,2]
[391543712,1760644242305,-208.426671,0.00016401,2]
[391543714,1760644242315,-151.0,0.00016401,2]
[391543716,1760644242326,-1358.242654,0.00016401,2]
[391543718,1760644242337,-151.0,0.00016401,2]
[391543721,1760644242347,-1358.242654,0.00016401,2]
[391543723,1760644242357,-151.0,0.00016401,2]
[391543725,1760644242367,-151.0,0.00016401,2]
[391543727,1760644242377,-1358.242654,0.00016401,2]
[391543729,1760644242387,-151.0,0.00016401,2]
[391543731,1760644242397,-316.655344,0.00016401,2]
[391543733,1760644242409,-1358.242654,0.00016401,2]
[391543735,1760644242420,-151.0,0.00016401,2]
[391543737,1760644242435,-151.0,0.00016401,2]
[391543739,1760644242446,-316.655344,0.00016401,2]
[391543741,1760644242456,-211.35180804,0.00016401,2]
[391543743,1760644242466,-151.0,0.00016401,2]
[391543746,1760644242478,-316.655344,0.00016401,2]
[391543748,1760644242487,-151.0,0.00016401,2]
[391543750,1760644242497,-151.0,0.00016401,2]
[391543752,1760644242508,-316.655344,0.00016401,2]
[391543754,1760644242519,-363.40011,0.00016401,2]
[391543756,1760644242528,-363.40011,0.00016401,2]
[391543758,1760644242538,-363.40011,0.00016401,2]
[391543760,1760644242548,-294.655102,0.00016401,2]
[391543762,1760644242558,-363.40011,0.00016401,2]
[391543764,1760644242567,-294.655102,0.00016401,2]
[391543766,1760644242577,-294.655102,0.00016401,2]
[391543769,1760644242587,-294.655102,0.00016401,2]
[391543771,1760644242597,-420.0,0.00016415,2]
[391543773,1760644242606,-10424.9901616,0.00016429,2]
[391543775,1760644242618,-151.0,0.00016438,2]
[391543777,1760644242628,-151.0,0.00016438,2]
[391543779,1760644242638,-151.0,0.00016438,2]
[391543781,1760644242647,-151.0,0.00016438,2]
[391543783,1760644242657,-151.0,0.00016438,2]
[391543785,1760644242667,-151.0,0.00016438,2]
[391543787,1760644242676,-151.0,0.00016438,2]
[391543789,1760644242686,-151.0,0.00016438,2]
[391543791,1760644242696,-151.0,0.00016438,2]
[391543793,1760644242706,-675.45,0.00016438,30]
[391543795,1760644242717,-500.0,0.00016438,2]
[391543797,1760644242730,-153.753605,0.00016455,2]
[391543799,1760644242740,-151.0,0.00016455,2]
[391543802,1760644242751,-151.0,0.00016455,2]
[391543804,1760644242760,-151.104172,0.00016455,2]
[391543806,1760644242770,-151.0,0.00016455,2]
[391543808,1760644242779,-151.0,0.00016455,2]
[391543810,1760644242789,-151.0,0.00016455,2]
[391543812,1760644242798,-153.258972,0.00016455,2]
[391543815,1760644242810,-151.0,0.00016455,2]
[391543818,1760644242820,-151.0,0.00016455,2]
[391543821,1760644242830,-151.0,0.00016455,2]
[391543824,1760644242839,-151.0,0.00016455,2]
[391543828,1760644242850,-207.389242,0.00016455,2]
[391543831,1760644242859,-151.0,0.00016455,2]
[391543834,1760644242869,-151.933678,0.00016455,2]
[391543837,1760644242879,-151.0,0.00016455,2]
[391543839,1760644242888,-151.0,0.00016455,2]
[391543841,1760644242899,-187.957264,0.00016455,2]
[391543843,1760644242908,-187.957264,0.00016455,2]
[391543844,1760644242918,-187.957264,0.00016455,2]
[391543845,1760644242928,-187.957264,0.00016455,2]
[391543846,1760644242938,-151.0,0.00016455,2]
[391543847,1760644242948,-151.0,0.00016455,2]
[391543848,1760644242958,-232.932112,0.00016455,2]
[391543850,1760644242970,-151.0,0.00016455,2]
[391543851,1760644242980,-151.0,0.00016455,2]
[391543852,1760644242990,-151.0,0.00016455,2]
[391543853,1760644243000,-151.0,0.00016455,2]
[391543854,1760644243011,-185.285114,0.00016455,2]
[391543855,1760644243021,-246.504812,0.00016455,2]
[391543856,1760644243033,-185.285114,0.00016455,2]
[391543857,1760644243045,-185.285114,0.00016455,2]
[391543859,1760644243055,-185.285114,0.00016455,2]
[391543860,1760644243064,-151.0,0.00016455,2]
[391543861,1760644243076,-151.0,0.00016455,2]